Cogmind - Beta 9.3 @@@ ROGUE MODE // 2019.12.17 @ 14:44:43 // Winter2019/RPGLIKE Player: Rowl Result: Destroyed by G-34 Mercenary with Small Laser Performance ------------- Evolutions (1) 500 Regions Visited (2) 400 Robots Destroyed (3) 15 Value Destroyed (30) 30 Prototype IDs (0) 0 Alien Tech Used (0) 0 Bonus (0) 0 TOTAL SCORE: 945 Bonus ------- None Cogmind --------- Core Integrity 0/600 Matter 300/300 Energy 125/125 System Corruption 0% Temperature Cool (6) Movement Treading (160) Location -9/Materials Parts ------- > --- POWER (1) -------- Light Ion Engine > --- PROPULSION (1) --- Light Treads > --- UTILITY (1) ------ (None) > --- WEAPON (1) ------- (None) > --- INVENTORY (0) ---- (None) Peak State ------------ > --- POWER ------------ Ion Engine > --- PROPULSION ------- Light Treads > --- UTILITY ---------- (None) > --- WEAPON ----------- Medium Laser > --- INVENTORY -------- (None) [Rating: 3] Favorites ----------- Power Light Ion Engine Engine Light Ion Engine Propulsion Light Treads Treads Light Treads Utility None Weapon Medium Laser Energy Gun Medium Laser Build | -11 -10 -9 ------- Run | Scr Mat Mat Slots Evolved . | . . . Power . | . . . Propulsion . | . . . Utility . | . . . Weapon . | . . . Parts Attached 4 | 3 1 . Power 2 | 1 1 . Engine 2 | 1 1 . Core . | . . . Reactor . | . . . Propulsion 1 | 1 . . Treads 1 | 1 . . Leg . | . . . Wheel . | . . . Hover . | . . . Flight . | . . . Utility . | . . . Device . | . . . Storage . | . . . Processor . | . . . Hackware . | . . . Protection . | . . . Artifact . | . . . Weapon 1 | 1 . . Energy Gun 1 | 1 . . Energy Cannon . | . . . Ballistic Gun . | . . . Ballistic Cannon . | . . . Launcher . | . . . Special Weapon . | . . . Impact Weapon . | . . . Slashing Weapon . | . . . Piercing Weapon . | . . . Special Melee Weapon . | . . . Unidentified Prototypes . | . . . Parts Lost 1 | . . 1 Power . | . . . Propulsion . | . . . Utility . | . . . Weapon 1 | . . 1 Highest Loss Streak 1 | . . 1 Average Slot Usage (%) 72 | . 75 65 Engine 25 | . 25 25 Treads 25 | . 25 25 Energy Gun 22 | . 25 15 Naked Turns . | . . . Heaviest Build 7 | 7 7 5 Greatest Support 20 | 20 20 20 Greatest Overweight (x) . | . . . Average Overweight (x) . | . . . Largest Inventory Capacity . | . . . Average Capacity . | . . . Most Carried . | . . . Average Carried . | . . . Final Capacity . | . . . Final Carried . | . . . Class Distribution -------------------- 100% | Mutant Dominant Class ---------------- Mutant | -10/Materials Mutant | -9/Materials Resources | -11 -10 -9 ----------- Run | Scr Mat Mat Matter Collected 230 | 228 2 . Remotely . | . . . Salvage Created 9 | . 9 . Parts 4 | . 4 . Haulers Intercepted . | . . . Recyclers Shooed . | . . . Parts Field Recycled . | . . . Retrieved Matter . | . . . Parts Self-Destructed . | . . . Prevented . | . . . Kills | -11 -10 -9 ------- Run | Scr Mat Mat Combat Hostiles Destroyed 3 | . 3 . Melee 3 | . 3 . Classes Destroyed 1 | . 1 . Swarmer 3 | . 3 . Best Kill Streak 3 | . 3 . Combat Bots Only 3 | . 3 . Max Kills in Single Turn 1 | . 1 . Gunslinging . | . . . Exploded . | . . . Melee 1 | . 1 . Uniques/NPCs Destroyed . | . . . Combat | -11 -10 -9 -------- Run | Scr Mat Mat Damage Taken 726 | . 323 403 Core 601 | . 265 336 Absorbed by Shields . | . . . Redirected to Core 402 | . 164 238 Core Remaining (%) 77 | 100 55 . Volleys Fired . | . . . Largest . | . . . Hottest . | . . . Shots Fired . | . . . Gun . | . . . Cannon . | . . . Launcher . | . . . Special . | . . . Kinetic . | . . . Thermal . | . . . Explosive . | . . . Electromagnetic . | . . . Robot Hit Streak . | . . . Robot Miss Streak . | . . . Penetration Max . | . . . Secondary Targets . | . . . Shots Hit Robots . | . . . Core Hits 2 | . 1 1 Critical Hits . | . . . Critical Kills . | . . . Critical Parts Destroyed . | . . . Melee Attacks . | . . . Impact . | . . . Slashing . | . . . Piercing . | . . . Sneak Attacks . | . . . Combat Hostiles . | . . . Follow-up Attacks . | . . . Damage Inflicted 21 | . 18 3 Guns . | . . . Cannons . | . . . Explosions . | . . . Melee . | . . . Ramming 21 | . 18 3 Kinetic . | . . . Thermal . | . . . Explosive . | . . . Electromagnetic . | . . . Impact . | . . . Slashing . | . . . Piercing . | . . . Highest Corruption 3 | . 3 . Average Corruption 2 | . 2 . Corruption Purged . | . . . Effects 1 | . 1 . Message Errors 1 | . 1 . Overload Shots . | . . . Overflow Damage . | . . . Projectiles . | . . . Explosions . | . . . Melee . | . . . Knockbacks . | . . . Impact . | . . . Kinetic . | . . . Secondary . | . . . Self-Inflicted Damage . | . . . Shots . | . . . Rammed 12 | . 10 2 Targets Rammed 15 | . 13 2 Kicked . | . . . Crushed 3 | . 3 . Highest Temperature 1 | . . 1 Average Temperature 1 | . . 1 Received Heat Transfer 156 | . . 156 Siege Activations . | . . . Robots Corrupted . | . . . Combat Hostiles . | . . . Parts Fried . | . . . Impact Corruptions . | . . . Robots Melted . | . . . Combat Hostiles . | . . . Parts Melted . | . . . Heat Transferred . | . . . Parts Sabotaged . | . . . Parts Stolen . | . . . Parts Stripped . | . . . Power Chain Reactions . | . . . Missiles Intercepted . | . . . Alert | -11 -10 -9 ------- Run | Scr Mat Mat Peak Influence 74 | . 74 46 Average Influence 32 | . 45 33 Maximum Alert Level . | . . . Low Security (%) 100 | 100 100 100 Level 1 . | . . . Level 2 . | . . . Level 3 . | . . . Level 4 . | . . . Level 5 . | . . . High Security . | . . . Max Security . | . . . Squads Dispatched . | . . . Investigation . | . . . Extermination . | . . . Reinforcement . | . . . Assault . | . . . Garrison . | . . . Intercept . | . . . Construction Impeded . | . . . Haulers Reinforced . | . . . Stealth | -11 -10 -9 --------- Run | Scr Mat Mat Distress Signals . | . . . Communications Jammed . | . . . Distress Signals . | . . . Times Spotted 6 | . 3 3 Peak Tracking Total 3 | . 3 3 Tactical Retreats 1 | . 1 . Traps | -11 -10 -9 ------- Run | Scr Mat Mat Traps Triggered 3 | . 3 . Indirectly . | . . . Trap Hack Attempts . | . . . Triggered . | . . . Disarmed . | . . . Reprogrammed . | . . . Reused . | . . . Traps Extracted . | . . . Installed . | . . . Triggered . | . . . Machines | -11 -10 -9 ---------- Run | Scr Mat Mat Machines Disabled . | . . . Max in Single Turn . | . . . Machines Sabotaged . | . . . Garrisons Compromised . | . . . Overloaded Fab Kills . | . . . Fab Network Shutdowns . | . . . Hacking | -11 -10 -9 --------- Run | Scr Mat Mat Machines Accessed 1 | . 1 . Terminals 1 | . 1 . Fabricators . | . . . Repair Stations . | . . . Recycling Units . | . . . Scanalyzers . | . . . Garrison Access . | . . . Total Hacks 1 | . 1 . Successful 1 | . 1 . Failed . | . . . Catastrophic . | . . . Database Lockouts . | . . . Manual . | . . . Terminals 1 | . 1 . Fabricators . | . . . Repair Stations . | . . . Recycling Units . | . . . Scanalyzers . | . . . Garrison Access . | . . . Terminal Hacks 1 | . 1 . Emergency Access Points 1 | . 1 . Fabricator Hacks . | . . . Repair Station Hacks . | . . . Recycling Unit Hacks . | . . . Scanalyzer . | . . . Garrison Access Hacks . | . . . Unauthorized Hacks . | . . . Terminals . | . . . Fabricators . | . . . Repair Stations . | . . . Recycling Units . | . . . Scanalyzers . | . . . Garrison Access . | . . . Data Cores Recovered . | . . . Used . | . . . Hacking Detections . | . . . Full Trace Events . | . . . Feedback Events . | . . . Feedback Blocked . | . . . Robot Schematics Acquired . | . . . Robots Built . | . . . Matter . | . . . Time . | . . . Total Robot Build Rating . | . . . Part Schematics Acquired . | . . . Parts Built . | . . . Matter . | . . . Time . | . . . Total Part Build Rating . | . . . Parts Repaired . | . . . Time . | . . . Parts Recycled . | . . . Recycled Matter . | . . . Retrieved Matter . | . . . Retrieved Components . | . . . Parts Scanalyzed . | . . . Part Schematics Acquired . | . . . Parts Damaged . | . . . Bothacking | -11 -10 -9 ------------ Run | Scr Mat Mat Used RIF Installer . | . . . Robots Hacked . | . . . Non-combat . | . . . Combat . | . . . Robot Hacks Applied . | . . . Relay Couplers Released . | . . . Robots Rewired . | . . . Allies Hacked . | . . . Hacks Repelled . | . . . Allies | -11 -10 -9 -------- Run | Scr Mat Mat Total Allies . | . . . Largest Group . | . . . Highest-Rated Group . | . . . Highest-Rated Ally . | . . . Total Orders . | . . . Ally Attacks . | . . . Total Damage . | . . . Kills . | . . . Allies Corrupted . | . . . Allies Melted . | . . . Intel | -11 -10 -9 ------- Run | Scr Mat Mat Robot Analysis Total . | . . . Derelict Logs Recovered . | . . . Drone Launches . | . . . Drone Recoveries . | . . . Exploration | -11 -10 -9 ------------- Run | Scr Mat Mat Turns Passed 429 | 96 228 105 Spaces Moved 270 | 77 129 64 Core 30 | 30 . . Treads 240 | 47 129 64 Legs . | . . . Wheels . | . . . Hover . | . . . Flight . | . . . Fastest Speed 50 | 50 160 160 Average Speed 147 | 117 160 160 Slowest Speed 160 | 160 160 160 Overloaded Moves . | . . . Propulsion Burnouts . | . . . Robots Hopped . | . . . Cave-ins Triggered . | . . . Exploration Rate (%) 12 | 3 24 9 Regions Visited 2 Branch Regions . Pre-discovered Areas . | . . . Known Exits Taken . | . . . Unknown Exits Taken 2 | 1 1 . Scrap Searched . | . . . Spaces Dug . | . . . Terrain Destroyed . | . . . Melee . | . . . Projectile . | . . . AOE . | . . . Actions | -11 -10 -9 --------- Run | Scr Mat Mat Total 290 | 81 143 66 Wait 2 | 2 . . Move 268 | 76 128 64 Hop . | . . . Pick Up . | . . . Fast Attach 3 | 3 . . Attach . | . . . Detach . | . . . Swap 1 | . 1 . Drop 1 | . 1 . Fire . | . . . Melee . | . . . Ram . | . . . Kick . | . . . Crush 15 | . 13 2 Escape Stasis . | . . . Rewire . | . . . Trap . | . . . Miscellaneous . | . . . Route ------- -11/Scrapyard -10/Materials -9/Materials History --------- Turn | Location | Event 5 | -11/Scrapyard | Discovered new exit (range 16) 97 | -11/Scrapyard | Entered Materials 293 | -10/Materials | Discovered new exit (range 15) 316 | -10/Materials | Build established: Mutant 325 | -10/Materials | Entered another Materials area 327 | -9/Materials | Reached level 2 387 | -9/Materials | Core integrity fell below 50% 422 | -9/Materials | Core integrity fell below 20% 430 | -9/Materials | Destroyed by G-34 Mercenary with Small Laser Last Messages --------------- 00208_ Protomatter-7 decays. 00210_ K-01 Serf collects debris. 00215_ R-06 Scavenger collects Lgt. Ion Engine. 00217_ K-01 Serf collects debris. 00219_ R-06 Scavenger collects Flight Unit. 00219_ Dropped Ion Engine. 00221_ Acquired 2 matter. 00221_ K-01 Serf collects debris. 00222_ R-06 Scavenger collects Ion Engine. 00224_ K-01 Serf collects debris. 00242_ K-01 Serf cleans the Integration Channel. 00246_ K-01 Serf collects debris. 00253_ K-01 Serf cleans the Integration Channel. 00293_ EXIT=FOUND 00314_ UQG1IOS>U<4>F 5 XYVZXT LOCATION=UNKNOWN GOAL=ESCAPE 00327_ Reached level 2. 00392_ Med. Laser destroyed. 00394_ Slammed into Y-45 Defender. Map ----- +----------------------------------------------------+ | ???????????????????# # """"""" #? | | ???????????????????# + """"""" #? | | ???????????????????# # """"""" #? | | ???????????????????# # #? | | ???????????????????# # #? | | ???????????????????# #####+#+###? | | ???????????????????# #???# #??? | | ???????????????????# ##### #??? | | ???????????????????# #??? | | ???????????????#####+## #??? | | ???????????????# # #??? | | ???????????????# # #??? | | ???????????????# # #??? | | ???????????????# # #??? | | ???????????????# # #??? | | ???????????????# # #??? | | ???????????????# # #??? | | ???????????????# + #??? | | ???????????????# # #??? | | ???????????????# # #??? | | ???????????????# ######## #??? | | ???????????????# #??????# #??? | | ???????????????# #??????# #??? | | ???????????????########????### ###? | | ?????????????????########### #? | | ?????????????????# @Y# #? | | ?????????????????# gg + %% #? | | ?????????????????# # #? | | ?????????????????# # #? | | ?????????????????############ ##? | | ????????????????????????????# #?? | | ????????????????????????????# #?? | | ????????????????????????????# #?? | | ????????????????????????????# #?? | | ????????????????????????????# #?? | | ????????????????????????????# #?? | | ????????????????????????????+ #?? | | ????????????????????????????# #?? | | ????????????????????????????# #?? | | ????????????????????????????? ?? | | ????????????????????????????? ?? | | ????????????????????????????? ??? | | ??????????????????????????????????? | | ??????????????????????????????????? | | ??????????????????????????????????? | | ??????????????????????????????????? | | ??????????????????????????????????? | | ??????????????????????????????????? | | ??????????????????????????????????? | | ??????????????????????????????????? | +----------------------------------------------------+ Best States ------------- Heat Dissipation 25 Energy Generation 10 Energy Capacity 250 Matter Stores 300 Matter Capacity 300 Sight Range 16 Terrain Scan Density 10 Evasion (%) 50 Recoil Reduction 1 Item Schematics ----------------- None Robot Schematics ------------------ None Fabricated ------------ Nothing Alien Tech Used ----------------- None Achievements -------------- None Challenges ------------ None RPGLIKE | -11 -10 -9 --------- Run | Scr Mat Mat Levels Raised 1 | . . 1 XP Earned 4850 | 3000 350 1500 Upgrades . | . . . Protomatter Created 7 | . 7 . Protomatter Decayed 7 | . 7 . Game ------ Seed CannonSwarmMinigun Manual? 0 Play Time 00:05:20 Cumulative 10.3 hours Start 2019.12.17 @ 14:39:15 End 2019.12.17 @ 14:44:43 Sessions 1 Manual Loads 0 Difficulty Rogue Special Mode Winter2019/RPGLIKE Game No. 24 Rogue 19 Adventurer 5 Explorer 0 Win Type - Total 7 Types 7/0/0/0/0/0/0 Lore% 4 Gallery% 16 Achievement% 8 Wizard Run 0 Options --------- ASCII 0 Keyboard 0 Movement Numpad Keybinds 0 Fullscreen 1 Font 24/Smallcaps Map View 76x50 Tactical HUD 1 Map Filters NONE Filters NONE Steam 1 RUN: 12ee71d2-3e24-42ec-93ce-4a212685c339